[Event "Late-Titled-Tuesday-Blitz-April-23-2024"]
[Site "Chess.com"]
[Date "2024.04.23"]
[Round "10"]
[White "Fh2411"]
[Black "FlemingA"]
[Result "0-1"]
[WhiteElo "2540"]
[BlackElo "2467"]
[TimeControl "180+1"]
[EndTime "16:00:07 PDT"]
[Termination "FlemingA won by resignation"]

1. d4 {[%clk 0:02:59.9]} 1... g6 {[%clk 0:02:58.3]} 2. Nf3 {[%clk 0:03:00.5]}
2... Bg7 {[%clk 0:02:58.6]} 3. Bf4 {[%clk 0:03:01.2]} 3... d6 {[%clk 0:02:58.6]}
4. e3 {[%clk 0:03:01.8]} 4... Nd7 {[%clk 0:02:54.9]} 5. h3 {[%clk 0:03:02.3]}
5... Ngf6 {[%clk 0:02:55.6]} 6. Be2 {[%clk 0:03:02.2]} 6... O-O {[%clk
0:02:56.5]} 7. O-O {[%clk 0:03:02.5]} 7... b6 {[%clk 0:02:57.3]} 8. c4 {[%clk
0:03:02.3]} 8... Bb7 {[%clk 0:02:58.1]} 9. Nc3 {[%clk 0:03:02.9]} 9... Ne4
{[%clk 0:02:58.4]} 10. Qc2 {[%clk 0:02:51.9]} 10... Ndf6 {[%clk 0:02:54.3]} 11.
a4 {[%clk 0:02:34.2]} 11... a5 {[%clk 0:02:48.4]} 12. Nb5 {[%clk 0:02:30.7]}
12... h6 {[%clk 0:02:43.4]} 13. Rfd1 {[%clk 0:02:30.3]} 13... c6 {[%clk
0:02:39.5]} 14. Na3 {[%clk 0:02:27.4]} 14... Re8 {[%clk 0:02:27.7]} 15. Bh2
{[%clk 0:02:24.6]} 15... Qd7 {[%clk 0:02:24.5]} 16. Bd3 {[%clk 0:02:16]} 16...
Ng5 {[%clk 0:02:16.1]} 17. Nxg5 {[%clk 0:02:08.1]} 17... hxg5 {[%clk 0:02:15.2]}
18. f3 {[%clk 0:02:00.1]} 18... Qc7 {[%clk 0:02:00.6]} 19. Qf2 {[%clk
0:01:48.1]} 19... e5 {[%clk 0:01:58.4]} 20. Rac1 {[%clk 0:01:31.3]} 20... Qe7
{[%clk 0:01:54.8]} 21. dxe5 {[%clk 0:01:24.4]} 21... dxe5 {[%clk 0:01:54.7]} 22.
c5 {[%clk 0:01:22.7]} 22... bxc5 {[%clk 0:01:47.4]} 23. e4 {[%clk 0:01:18.7]}
23... Nh5 {[%clk 0:01:38.4]} 24. Qxc5 {[%clk 0:01:11.7]} 24... Nf4 {[%clk
0:01:32.3]} 25. Qxe7 {[%clk 0:01:09]} 25... Rxe7 {[%clk 0:01:32.5]} 26. Bf1
{[%clk 0:01:09.1]} 26... Bf8 {[%clk 0:01:20.9]} 27. Nc4 {[%clk 0:01:07.5]} 27...
Ba6 {[%clk 0:01:13.8]} 28. g3 {[%clk 0:00:48.9]} 28... Bxc4 {[%clk 0:01:04.7]}
29. Bxc4 {[%clk 0:00:40.7]} 29... Ne6 {[%clk 0:00:47]} 30. Kg2 {[%clk
0:00:39.8]} 30... Nd4 {[%clk 0:00:42.2]} 31. Bg1 {[%clk 0:00:37.1]} 31... Rb8
{[%clk 0:00:29.1]} 32. Bxd4 {[%clk 0:00:28.2]} 32... exd4 {[%clk 0:00:28.7]} 33.
b3 {[%clk 0:00:29.1]} 33... Rd7 {[%clk 0:00:24.1]} 34. Rd3 {[%clk 0:00:29.5]}
34... Bb4 {[%clk 0:00:22.8]} 35. f4 {[%clk 0:00:27.1]} 35... gxf4 {[%clk
0:00:22.2]} 36. gxf4 {[%clk 0:00:28]} 36... Kg7 {[%clk 0:00:22.8]} 37. Kf3
{[%clk 0:00:28]} 37... Rh8 {[%clk 0:00:22.1]} 38. Rh1 {[%clk 0:00:25.5]} 38...
Rh5 {[%clk 0:00:18.6]} 39. e5 {[%clk 0:00:23.5]} 39... Bc3 {[%clk 0:00:15.8]}
40. Ke4 {[%clk 0:00:23.5]} 40... Rh4 {[%clk 0:00:14.1]} 41. Rg3 {[%clk
0:00:23.5]} 41... Bd2 {[%clk 0:00:08]} 42. Rf1 {[%clk 0:00:23.6]} 42... Rd8
{[%clk 0:00:04.2]} 43. Rff3 {[%clk 0:00:23.8]} 43... Be3 {[%clk 0:00:03.7]} 44.
Rg4 {[%clk 0:00:21]} 44... Rh5 {[%clk 0:00:03]} 45. f5 {[%clk 0:00:18.6]} 45...
Rdh8 {[%clk 0:00:02.5]} 46. fxg6 {[%clk 0:00:17.7]} 46... fxg6 {[%clk
0:00:02.5]} 47. Rf7+ {[%clk 0:00:17.2]} 47... Kh6 {[%clk 0:00:02.6]} 48. Rf6
{[%clk 0:00:16.5]} 48... Rg5 {[%clk 0:00:03]} 49. Rh4+ {[%clk 0:00:16.1]} 49...
Rh5 {[%clk 0:00:03.4]} 50. Rg4 {[%clk 0:00:16.3]} 50... Rg5 {[%clk 0:00:03.8]}
51. e6 {[%clk 0:00:15.8]} 51... Rxg4+ {[%clk 0:00:03.4]} 52. hxg4 {[%clk
0:00:16.7]} 52... Re8 {[%clk 0:00:01.7]} 53. Rf7 {[%clk 0:00:16]} 53... Kg5
{[%clk 0:00:01.2]} 54. Ba6 {[%clk 0:00:13.4]} 54... Bg1 {[%clk 0:00:01.3]} 55.
e7 {[%clk 0:00:12.7]} 55... Kxg4 {[%clk 0:00:01.1]} 56. Bb7 {[%clk 0:00:12.3]}
56... d3 {[%clk 0:00:01.7]} 57. Kxd3 {[%clk 0:00:12.6]} 57... Bc5 {[%clk
0:00:02.2]} 58. Bxc6 {[%clk 0:00:12.2]} 58... Rxe7 {[%clk 0:00:02.9]} 59. Rf6
{[%clk 0:00:11.1]} 59... Kg5 {[%clk 0:00:03.4]} 60. Rf3 {[%clk 0:00:09.9]} 60...
Bb4 {[%clk 0:00:03.3]} 61. Kc4 {[%clk 0:00:10.3]} 61... Rc7 {[%clk 0:00:03.6]}
62. Kb5 {[%clk 0:00:10.5]} 62... Re7 {[%clk 0:00:03.7]} 63. Rg3+ {[%clk
0:00:10.8]} 63... Kf6 {[%clk 0:00:03.7]} 64. Bd5 {[%clk 0:00:10]} 64... Re5
{[%clk 0:00:04.2]} 65. Kc4 {[%clk 0:00:10.4]} 65... Rg5 {[%clk 0:00:04.2]} 66.
Rf3+ {[%clk 0:00:10.8]} 66... Rf5 {[%clk 0:00:04.8]} 67. Rg3 {[%clk 0:00:10.9]}
67... Rg5 {[%clk 0:00:05.2]} 68. Re3 {[%clk 0:00:11.6]} 68... Re5 {[%clk
0:00:05.3]} 69. Rh3 {[%clk 0:00:12.2]} 69... Rh5 {[%clk 0:00:05.4]} 70. Rf3+
{[%clk 0:00:11.2]} 70... Rf5 {[%clk 0:00:05.7]} 71. Re3 {[%clk 0:00:11.6]} 71...
Re5 {[%clk 0:00:06.1]} 72. Be4 {[%clk 0:00:11.7]} 72... Kg5 {[%clk 0:00:03.8]}
73. Kd3 {[%clk 0:00:12.4]} 73... Kf4 {[%clk 0:00:03.4]} 74. Rf3+ {[%clk
0:00:13.1]} 74... Kg5 {[%clk 0:00:04]} 75. Rg3+ {[%clk 0:00:13.6]} 75... Kf4
{[%clk 0:00:04.3]} 76. Rf3+ {[%clk 0:00:13.1]} 76... Kg5 {[%clk 0:00:04.7]} 77.
Rf1 {[%clk 0:00:12.7]} 77... Re6 {[%clk 0:00:05]} 78. Rg1+ {[%clk 0:00:12.8]}
78... Kh6 {[%clk 0:00:04.9]} 79. Rh1+ {[%clk 0:00:13]} 79... Kg7 {[%clk
0:00:05.1]} 80. Rg1 {[%clk 0:00:13.5]} 80... Rd6+ {[%clk 0:00:05.5]} 81. Kc4
{[%clk 0:00:13.3]} 81... Re6 {[%clk 0:00:04.6]} 82. Kd5 {[%clk 0:00:12.7]} 82...
Rf6 {[%clk 0:00:04.3]} 83. Ke5 {[%clk 0:00:12.5]} 83... Rb6 {[%clk 0:00:03.6]}
84. Bd5 {[%clk 0:00:10.7]} 84... Bc3+ {[%clk 0:00:03.6]} 85. Ke4 {[%clk
0:00:10.4]} 85... Rf6 {[%clk 0:00:03.6]} 86. Rg3 {[%clk 0:00:09.7]} 86... Bb4
{[%clk 0:00:04.2]} 87. Ke5 {[%clk 0:00:08.7]} 87... Bd6+ {[%clk 0:00:04.4]} 88.
Ke4 {[%clk 0:00:08.5]} 88... Bxg3 {[%clk 0:00:05.3]} 0-1

[Event "Late-Titled-Tuesday-Blitz-April-23-2024"]
[Site "Chess.com"]
[Date "2024.04.23"]
[Round "11"]
[White "LeninGuerra"]
[Black "Balla_Tamas"]
[Result "1-0"]
[WhiteElo "2681"]
[BlackElo "2550"]
[TimeControl "180+1"]
[EndTime "16:02:11 PDT"]
[Termination "LeninGuerra won by resignation"]

1. e4 {[%clk 0:03:00.9]} 1... c5 {[%clk 0:02:59.4]} 2. Nf3 {[%clk 0:03:00.6]}
2... Nc6 {[%clk 0:02:59.5]} 3. c3 {[%clk 0:03:00.2]} 3... Nf6 {[%clk 0:02:59.2]}
4. Bb5 {[%clk 0:03:00.5]} 4... Nxe4 {[%clk 0:02:54.9]} 5. O-O {[%clk 0:03:00.5]}
5... g6 {[%clk 0:02:47.1]} 6. Re1 {[%clk 0:03:00.6]} 6... Nd6 {[%clk 0:02:45.7]}
7. Bf1 {[%clk 0:02:59.8]} 7... Bg7 {[%clk 0:02:45.5]} 8. d4 {[%clk 0:03:00.3]}
8... cxd4 {[%clk 0:02:45.5]} 9. cxd4 {[%clk 0:03:01.2]} 9... O-O {[%clk
0:02:43]} 10. d5 {[%clk 0:03:01.1]} 10... Nb8 {[%clk 0:02:37.9]} 11. Nc3 {[%clk
0:03:00.3]} 11... b6 {[%clk 0:02:36.5]} 12. Bg5 {[%clk 0:02:59.1]} 12... Re8
{[%clk 0:02:33.9]} 13. Nd4 {[%clk 0:02:50.7]} 13... Bb7 {[%clk 0:02:31.1]} 14.
Ndb5 {[%clk 0:02:50.6]} 14... Nxb5 {[%clk 0:02:24.5]} 15. Nxb5 {[%clk
0:02:51.5]} 15... a6 {[%clk 0:02:24]} 16. Nd6 {[%clk 0:02:48.9]} 16... Qc7
{[%clk 0:02:17.6]} 17. Nxe8 {[%clk 0:02:48.4]} 1-0

[Event "Late-Titled-Tuesday-Blitz-April-23-2024"]
[Site "Chess.com"]
[Date "2024.04.23"]
[Round "11"]
[White "yaguigor"]
[Black "traack"]
[Result "1-0"]
[WhiteElo "2571"]
[BlackElo "2458"]
[TimeControl "180+1"]
[EndTime "16:02:14 PDT"]
[Termination "yaguigor won by resignation"]

1. d4 {[%clk 0:03:00.9]} 1... Nf6 {[%clk 0:02:58.6]} 2. c4 {[%clk 0:03:00.2]}
2... c5 {[%clk 0:02:57.8]} 3. d5 {[%clk 0:02:59.6]} 3... d6 {[%clk 0:02:57.9]}
4. Nc3 {[%clk 0:02:58.7]} 4... g6 {[%clk 0:02:58.8]} 5. e4 {[%clk 0:02:57.5]}
5... Bg7 {[%clk 0:02:59.7]} 6. Bd3 {[%clk 0:02:55.8]} 6... O-O {[%clk
0:03:00.2]} 7. h3 {[%clk 0:02:55.4]} 7... e6 {[%clk 0:03:01.1]} 8. Nf3 {[%clk
0:02:55.4]} 8... exd5 {[%clk 0:03:02]} 9. exd5 {[%clk 0:02:55]} 9... Re8+ {[%clk
0:03:02.6]} 10. Be3 {[%clk 0:02:54.5]} 10... Bh6 {[%clk 0:03:01.2]} 11. O-O
{[%clk 0:02:53.9]} 11... Bxe3 {[%clk 0:03:01.8]} 12. fxe3 {[%clk 0:02:53.6]}
12... Qe7 {[%clk 0:03:02.7]} 13. e4 {[%clk 0:02:51.8]} 13... Nbd7 {[%clk
0:03:01.8]} 14. Qd2 {[%clk 0:02:34.7]} 14... Ne5 {[%clk 0:03:00.7]} 15. Nxe5
{[%clk 0:02:29.5]} 15... Qxe5 {[%clk 0:03:01.6]} 16. Qf2 {[%clk 0:02:21.8]}
16... Kg7 {[%clk 0:03:00.4]} 17. Rae1 {[%clk 0:02:19.9]} 17... a6 {[%clk
0:02:59.7]} 18. Re3 {[%clk 0:02:19.5]} 18... Rf8 {[%clk 0:02:52.3]} 19. Rf3
{[%clk 0:02:17.4]} 1-0

[Event "Late-Titled-Tuesday-Blitz-April-23-2024"]
[Site "Chess.com"]
[Date "2024.04.23"]
[Round "11"]
[White "Sanyura"]
[Black "platy3"]
[Result "1-0"]
[WhiteElo "2676"]
[BlackElo "2869"]
[TimeControl "180+1"]
[EndTime "16:03:19 PDT"]
[Termination "Sanyura won by resignation"]

1. e4 {[%clk 0:02:50.2]} 1... c5 {[%clk 0:02:59.5]} 2. Nf3 {[%clk 0:02:49.8]}
2... e6 {[%clk 0:03:00.1]} 3. d4 {[%clk 0:02:49.9]} 3... cxd4 {[%clk 0:03:00]}
4. Nxd4 {[%clk 0:02:50.8]} 4... Nc6 {[%clk 0:03:00.6]} 5. Nc3 {[%clk 0:02:51.2]}
5... Qc7 {[%clk 0:03:00.7]} 6. f4 {[%clk 0:02:49.6]} 6... a6 {[%clk 0:02:59.9]}
7. Nxc6 {[%clk 0:02:49]} 7... bxc6 {[%clk 0:03:00.8]} 8. Bd3 {[%clk 0:02:49]}
8... d5 {[%clk 0:03:01.3]} 9. O-O {[%clk 0:02:49.3]} 9... Nf6 {[%clk 0:03:02]}
10. Qf3 {[%clk 0:02:44.5]} 10... Be7 {[%clk 0:03:02]} 11. Kh1 {[%clk 0:02:44.5]}
11... a5 {[%clk 0:03:01.2]} 12. Bd2 {[%clk 0:02:44.3]} 12... Ba6 {[%clk
0:03:00.3]} 13. Rae1 {[%clk 0:02:40.4]} 13... Bxd3 {[%clk 0:02:59.6]} 14. cxd3
{[%clk 0:02:37.6]} 14... g6 {[%clk 0:02:28.6]} 15. f5 {[%clk 0:02:29.4]} 15...
gxf5 {[%clk 0:02:23.5]} 16. exf5 {[%clk 0:02:26.6]} 16... e5 {[%clk 0:02:23.8]}
17. Qg3 {[%clk 0:01:51.4]} 17... Bd6 {[%clk 0:02:22.4]} 18. Qg7 {[%clk
0:01:46.1]} 1-0

[Event "Late-Titled-Tuesday-Blitz-April-23-2024"]
[Site "Chess.com"]
[Date "2024.04.23"]
[Round "11"]
[White "jij2018"]
[Black "frequentblunders"]
[Result "1-0"]
[WhiteElo "2513"]
[BlackElo "2207"]
[TimeControl "180+1"]
[EndTime "16:04:58 PDT"]
[Termination "jij2018 won by resignation"]

1. e4 {[%clk 0:03:00.9]} 1... e6 {[%clk 0:02:54.1]} 2. d4 {[%clk 0:03:00.4]}
2... c5 {[%clk 0:02:55]} 3. Nf3 {[%clk 0:02:59.4]} 3... cxd4 {[%clk 0:02:48.1]}
4. Nxd4 {[%clk 0:03:00.3]} 4... Nf6 {[%clk 0:02:48.6]} 5. Nc3 {[%clk 0:03:00.3]}
5... Nc6 {[%clk 0:02:48.9]} 6. Nxc6 {[%clk 0:03:00.6]} 6... bxc6 {[%clk
0:02:47.1]} 7. e5 {[%clk 0:03:00.8]} 7... Nd5 {[%clk 0:02:46.9]} 8. Ne4 {[%clk
0:03:01]} 8... Ba6 {[%clk 0:02:45.9]} 9. c4 {[%clk 0:02:58.6]} 9... Qb6 {[%clk
0:02:31.6]} 10. cxd5 {[%clk 0:02:55.8]} 10... exd5 {[%clk 0:02:31.7]} 11. Bxa6
{[%clk 0:02:44.5]} 11... dxe4 {[%clk 0:02:29.6]} 12. Be2 {[%clk 0:02:28]} 12...
Bc5 {[%clk 0:02:28.1]} 13. O-O {[%clk 0:02:27.6]} 13... O-O {[%clk 0:02:27.7]}
14. Qxd7 {[%clk 0:02:24.4]} 14... Rad8 {[%clk 0:02:24]} 15. Qf5 {[%clk
0:02:24.4]} 15... Rfe8 {[%clk 0:02:19.6]} 16. Qxe4 {[%clk 0:02:23.5]} 16... Rd4
{[%clk 0:02:09.9]} 17. Qc2 {[%clk 0:02:12.3]} 17... Rxe5 {[%clk 0:02:07.6]} 18.
Be3 {[%clk 0:02:12.1]} 18... Rdd5 {[%clk 0:02:02.9]} 19. Bf3 {[%clk 0:02:02.1]}
19... Rd8 {[%clk 0:01:50.1]} 20. Bxc5 {[%clk 0:01:55.8]} 20... Rxc5 {[%clk
0:01:51]} 21. Qe2 {[%clk 0:01:56]} 21... g6 {[%clk 0:01:47.7]} 22. Rfd1 {[%clk
0:01:55.6]} 22... Rb8 {[%clk 0:01:36.7]} 23. b3 {[%clk 0:01:53.5]} 23... Qc7
{[%clk 0:01:29.5]} 24. Rac1 {[%clk 0:01:49.1]} 24... Rxc1 {[%clk 0:01:28.6]} 25.
Rxc1 {[%clk 0:01:50]} 25... c5 {[%clk 0:01:25.5]} 26. g3 {[%clk 0:01:48.8]}
26... Rc8 {[%clk 0:01:24.5]} 27. Qc4 {[%clk 0:01:43.7]} 27... Qd6 {[%clk
0:01:14.8]} 28. Qd5 {[%clk 0:01:42.1]} 28... Qe7 {[%clk 0:01:11.2]} 29. b4
{[%clk 0:01:40.5]} 29... Rd8 {[%clk 0:01:09.4]} 30. Qxc5 {[%clk 0:01:40.8]}
30... Qxc5 {[%clk 0:01:08.7]} 31. bxc5 {[%clk 0:01:40.8]} 1-0

[Event "Late-Titled-Tuesday-Blitz-April-23-2024"]
[Site "Chess.com"]
[Date "2024.04.23"]
[Round "11"]
[White "Pig-filth"]
[Black "ImportedItalianMaple"]
[Result "0-1"]
[WhiteElo "2269"]
[BlackElo "2458"]
[TimeControl "180+1"]
[EndTime "16:05:16 PDT"]
[Termination "ImportedItalianMaple won by resignation"]

1. d4 {[%clk 0:03:00.9]} 1... g6 {[%clk 0:03:00.4]} 2. e4 {[%clk 0:02:59]} 2...
Bg7 {[%clk 0:03:00.9]} 3. Nc3 {[%clk 0:02:59.7]} 3... d6 {[%clk 0:03:00]} 4. Nf3
{[%clk 0:02:59.7]} 4... a6 {[%clk 0:03:00.1]} 5. Be3 {[%clk 0:02:58]} 5... b5
{[%clk 0:02:59.8]} 6. a3 {[%clk 0:02:57.2]} 6... Bb7 {[%clk 0:02:59.8]} 7. Qd2
{[%clk 0:02:57.7]} 7... Nd7 {[%clk 0:02:57.1]} 8. Bd3 {[%clk 0:02:53.8]} 8... e6
{[%clk 0:02:56.4]} 9. O-O {[%clk 0:02:48.5]} 9... c5 {[%clk 0:02:56.2]} 10. Rfe1
{[%clk 0:02:46.1]} 10... Ne7 {[%clk 0:02:51.8]} 11. h3 {[%clk 0:02:45.5]} 11...
O-O {[%clk 0:02:50.3]} 12. Rad1 {[%clk 0:02:41.7]} 12... Qc7 {[%clk 0:02:44.9]}
13. Bf1 {[%clk 0:02:31.5]} 13... Rad8 {[%clk 0:02:42.9]} 14. Bh6 {[%clk
0:02:28.9]} 14... Rfe8 {[%clk 0:02:39.4]} 15. Bxg7 {[%clk 0:02:28.2]} 15... Kxg7
{[%clk 0:02:40.3]} 16. dxc5 {[%clk 0:02:24.5]} 16... dxc5 {[%clk 0:02:40]} 17.
Qd6 {[%clk 0:02:23.7]} 17... Qxd6 {[%clk 0:02:39.9]} 18. Rxd6 {[%clk 0:02:24.6]}
18... Nf6 {[%clk 0:02:29.5]} 19. Rb6 {[%clk 0:02:04.6]} 19... Rd7 {[%clk
0:02:24.4]} 20. Ne5 {[%clk 0:01:49.4]} 20... Rc7 {[%clk 0:02:15.1]} 21. f3
{[%clk 0:01:49.6]} 21... Rd8 {[%clk 0:02:12.4]} 22. Rd1 {[%clk 0:01:43.1]} 22...
Rxd1 {[%clk 0:02:07.8]} 23. Nxd1 {[%clk 0:01:44]} 23... Nc8 {[%clk 0:02:06.1]}
24. Rxb7 {[%clk 0:01:34.4]} 24... Rxb7 {[%clk 0:02:06.4]} 25. Ne3 {[%clk
0:01:34.3]} 25... Ne7 {[%clk 0:01:59.9]} 26. Kf2 {[%clk 0:01:33.3]} 26... Nd7
{[%clk 0:02:00.2]} 27. Nd3 {[%clk 0:01:28.3]} 27... Rc7 {[%clk 0:01:59.5]} 28.
c3 {[%clk 0:01:28.2]} 28... f6 {[%clk 0:01:57.6]} 29. Be2 {[%clk 0:01:28]} 29...
Nb6 {[%clk 0:01:57.1]} 30. Nf4 {[%clk 0:01:25]} 30... Kf7 {[%clk 0:01:56.4]} 31.
Ke1 {[%clk 0:01:17.7]} 31... e5 {[%clk 0:01:54.8]} 32. Nd3 {[%clk 0:01:11.8]}
32... c4 {[%clk 0:01:54.5]} 33. Nb4 {[%clk 0:01:08.6]} 33... a5 {[%clk
0:01:54.7]} 34. Na6 {[%clk 0:01:00.9]} 34... Rc8 {[%clk 0:01:53]} 35. a4 {[%clk
0:01:00.4]} 35... Nxa4 {[%clk 0:01:49.6]} 0-1

[Event "Late-Titled-Tuesday-Blitz-April-23-2024"]
[Site "Chess.com"]
[Date "2024.04.23"]
[Round "11"]
[White "tarno17"]
[Black "titomagno_64"]
[Result "0-1"]
[WhiteElo "2161"]
[BlackElo "2317"]
[TimeControl "180+1"]
[EndTime "16:05:33 PDT"]
[Termination "titomagno_64 won by resignation"]

1. e4 {[%clk 0:02:56.6]} 1... g6 {[%clk 0:02:59.7]} 2. d4 {[%clk 0:02:56.3]}
2... Nf6 {[%clk 0:03:00.2]} 3. Nc3 {[%clk 0:02:56.4]} 3... d5 {[%clk 0:02:59.9]}
4. f3 {[%clk 0:02:47]} 4... dxe4 {[%clk 0:02:58.8]} 5. Nxe4 {[%clk 0:02:45]}
5... Nxe4 {[%clk 0:02:52.9]} 6. fxe4 {[%clk 0:02:44.5]} 6... e5 {[%clk
0:02:53.1]} 7. d5 {[%clk 0:02:38]} 7... Qh4+ {[%clk 0:02:51.8]} 8. Kd2 {[%clk
0:02:21.1]} 8... Qxe4 {[%clk 0:02:33.9]} 9. Qf3 {[%clk 0:02:12.2]} 9... Bh6+
{[%clk 0:02:25.9]} 10. Kd1 {[%clk 0:02:11.8]} 10... Bg4 {[%clk 0:02:26.1]} 11.
Bxh6 {[%clk 0:01:52.6]} 11... Qxd5+ {[%clk 0:02:15.1]} 12. Bd3 {[%clk
0:01:46.5]} 12... Bxf3+ {[%clk 0:02:15.2]} 13. gxf3 {[%clk 0:01:43.7]} 13... e4
{[%clk 0:02:07.3]} 14. Nh3 {[%clk 0:01:05]} 14... exd3 {[%clk 0:02:01.4]} 15.
Re1+ {[%clk 0:01:05.6]} 15... Kd7 {[%clk 0:01:51.9]} 16. Re3 {[%clk 0:00:50.8]}
16... dxc2+ {[%clk 0:01:40.8]} 17. Kxc2 {[%clk 0:00:49.8]} 17... Qf5+ {[%clk
0:01:40.5]} 18. Rd3+ {[%clk 0:00:48]} 18... Kc8 {[%clk 0:01:31.9]} 19. Nf2
{[%clk 0:00:36.3]} 19... Nc6 {[%clk 0:01:28.4]} 20. a3 {[%clk 0:00:25.8]} 20...
Ne5 {[%clk 0:01:25.4]} 21. Rd1 {[%clk 0:00:25]} 21... Nxd3 {[%clk 0:01:25.5]}
22. Rxd3 {[%clk 0:00:25.7]} 22... Rd8 {[%clk 0:01:22.9]} 0-1

[Event "Late-Titled-Tuesday-Blitz-April-23-2024"]
[Site "Chess.com"]
[Date "2024.04.23"]
[Round "11"]
[White "Oleg_Papayan"]
[Black "subham777"]
[Result "1-0"]
[WhiteElo "2655"]
[BlackElo "2543"]
[TimeControl "180+1"]
[EndTime "16:05:43 PDT"]
[Termination "Oleg_Papayan won by checkmate"]

1. e4 {[%clk 0:02:58.1]} 1... e6 {[%clk 0:02:59.8]} 2. d4 {[%clk 0:02:57.8]}
2... d5 {[%clk 0:02:59.9]} 3. Nc3 {[%clk 0:02:58.5]} 3... Nf6 {[%clk 0:02:59.9]}
4. Bg5 {[%clk 0:02:57.4]} 4... Be7 {[%clk 0:03:00]} 5. e5 {[%clk 0:02:56.6]}
5... Nfd7 {[%clk 0:03:00.5]} 6. Bxe7 {[%clk 0:02:57.5]} 6... Qxe7 {[%clk
0:03:01.2]} 7. f4 {[%clk 0:02:58.2]} 7... a6 {[%clk 0:03:01.4]} 8. Qg4 {[%clk
0:02:58]} 8... O-O {[%clk 0:03:01.3]} 9. Nf3 {[%clk 0:02:56.9]} 9... c5 {[%clk
0:03:01.6]} 10. Bd3 {[%clk 0:02:57]} 10... f5 {[%clk 0:03:00.1]} 11. Qg5 {[%clk
0:02:53.9]} 11... Qxg5 {[%clk 0:02:59.1]} 12. Nxg5 {[%clk 0:02:54.8]} 12... cxd4
{[%clk 0:02:54.5]} 13. Ne2 {[%clk 0:02:53.8]} 13... Nc5 {[%clk 0:02:54.5]} 14.
Nxd4 {[%clk 0:02:53.1]} 14... h6 {[%clk 0:02:53]} 15. Ngf3 {[%clk 0:02:50.9]}
15... Bd7 {[%clk 0:02:47.9]} 16. Kd2 {[%clk 0:02:43.9]} 16... Nc6 {[%clk
0:02:42.4]} 17. Nxc6 {[%clk 0:02:43.5]} 17... Bxc6 {[%clk 0:02:42.3]} 18. Nd4
{[%clk 0:02:42.9]} 18... Rae8 {[%clk 0:02:41.2]} 19. Ke3 {[%clk 0:02:41.1]}
19... g5 {[%clk 0:02:37.2]} 20. g3 {[%clk 0:02:37.3]} 20... Kf7 {[%clk
0:02:35.1]} 21. b4 {[%clk 0:02:34]} 21... Nxd3 {[%clk 0:02:34.6]} 22. cxd3
{[%clk 0:02:32.8]} 22... Ke7 {[%clk 0:02:30.8]} 23. Rhc1 {[%clk 0:02:22.1]}
23... Rc8 {[%clk 0:02:30.1]} 24. Rc5 {[%clk 0:02:16.9]} 24... Bd7 {[%clk
0:02:27.8]} 25. Rac1 {[%clk 0:02:11.8]} 25... b6 {[%clk 0:02:27.9]} 26. Rc7
{[%clk 0:02:00.2]} 26... Rxc7 {[%clk 0:02:28.1]} 27. Rxc7 {[%clk 0:02:01.1]}
27... Ra8 {[%clk 0:02:21]} 28. Rb7 {[%clk 0:01:25]} 28... b5 {[%clk 0:02:11.3]}
29. Nb3 {[%clk 0:01:16.2]} 29... Kd8 {[%clk 0:01:49.6]} 30. Nc5 {[%clk
0:01:11.5]} 30... Bc8 {[%clk 0:01:50]} 31. Rh7 {[%clk 0:01:08.3]} 31... a5
{[%clk 0:01:50.3]} 32. Nxe6+ {[%clk 0:00:56.5]} 32... Bxe6 {[%clk 0:01:39.4]}
33. Rh8+ {[%clk 0:00:55.4]} 33... Kc7 {[%clk 0:01:40.3]} 34. Rxa8 {[%clk
0:00:55.2]} 34... axb4 {[%clk 0:01:41.2]} 35. Kd4 {[%clk 0:00:51.7]} 35... Kb6
{[%clk 0:01:40.5]} 36. Rh8 {[%clk 0:00:47.3]} 36... gxf4 {[%clk 0:01:40.2]} 37.
gxf4 {[%clk 0:00:48.2]} 37... Ka5 {[%clk 0:01:39.8]} 38. Rxh6 {[%clk 0:00:47.7]}
38... Bc8 {[%clk 0:01:40.6]} 39. e6 {[%clk 0:00:44.6]} 39... Ka4 {[%clk
0:01:39.1]} 40. e7 {[%clk 0:00:42.9]} 40... Bd7 {[%clk 0:01:37.6]} 41. Ra6#
{[%clk 0:00:42]} 1-0

[Event "Late-Titled-Tuesday-Blitz-April-23-2024"]
[Site "Chess.com"]
[Date "2024.04.23"]
[Round "11"]
[White "zacachess"]
[Black "giomar27"]
[Result "1/2-1/2"]
[WhiteElo "2336"]
[BlackElo "2495"]
[TimeControl "180+1"]
[EndTime "16:05:49 PDT"]
[Termination "Game drawn by repetition"]

1. e4 {[%clk 0:03:00.1]} 1... e5 {[%clk 0:02:58.8]} 2. Nf3 {[%clk 0:02:55.5]}
2... Nc6 {[%clk 0:02:59.4]} 3. d4 {[%clk 0:02:55.4]} 3... exd4 {[%clk
0:03:00.3]} 4. Nxd4 {[%clk 0:02:56.3]} 4... Bc5 {[%clk 0:02:59.9]} 5. Nb3 {[%clk
0:02:50.1]} 5... Bb6 {[%clk 0:02:59.4]} 6. Nc3 {[%clk 0:02:50]} 6... Nf6 {[%clk
0:02:59.4]} 7. Qe2 {[%clk 0:02:50.4]} 7... O-O {[%clk 0:02:59.5]} 8. Bg5 {[%clk
0:02:49.7]} 8... h6 {[%clk 0:02:50.6]} 9. Bh4 {[%clk 0:02:49.3]} 9... a5 {[%clk
0:02:50.7]} 10. a4 {[%clk 0:02:48.6]} 10... Nd4 {[%clk 0:02:50.7]} 11. Qd3
{[%clk 0:02:34.6]} 11... Nxb3 {[%clk 0:02:49]} 12. cxb3 {[%clk 0:02:35.5]} 12...
d6 {[%clk 0:02:23]} 13. O-O-O {[%clk 0:02:33.7]} 13... Be6 {[%clk 0:02:22.3]}
14. Qc2 {[%clk 0:02:19.8]} 14... g5 {[%clk 0:02:18.3]} 15. Bg3 {[%clk
0:02:18.2]} 15... Nh5 {[%clk 0:02:18.4]} 16. Bd3 {[%clk 0:01:59.2]} 16... Qf6
{[%clk 0:02:16.9]} 17. Rde1 {[%clk 0:01:08.2]} 17... Nf4 {[%clk 0:02:15.8]} 18.
h4 {[%clk 0:00:38]} 18... Bxb3 {[%clk 0:02:12.4]} 19. Qd2 {[%clk 0:00:37.8]}
19... Kg7 {[%clk 0:02:03.1]} 20. Kb1 {[%clk 0:00:33.3]} 20... Be6 {[%clk
0:01:58.7]} 21. e5 {[%clk 0:00:33.1]} 21... dxe5 {[%clk 0:01:56.6]} 22. hxg5
{[%clk 0:00:33.5]} 22... hxg5 {[%clk 0:01:56.3]} 23. Rh7+ {[%clk 0:00:33.5]}
23... Kg8 {[%clk 0:01:55.6]} 24. Reh1 {[%clk 0:00:27.7]} 24... Nxd3 {[%clk
0:01:55.5]} 25. Qxd3 {[%clk 0:00:27.5]} 25... Bf5 {[%clk 0:01:54.3]} 26. Rh8+
{[%clk 0:00:22.5]} 26... Kg7 {[%clk 0:01:46]} 27. R1h7+ {[%clk 0:00:20.4]} 27...
Kg6 {[%clk 0:01:46.3]} 28. Rh6+ {[%clk 0:00:20.6]} 28... Kg7 {[%clk 0:01:46.5]}
29. R6h7+ {[%clk 0:00:18.3]} 29... Kg6 {[%clk 0:01:44.2]} 30. Rh6+ {[%clk
0:00:17.9]} 30... Kg7 {[%clk 0:01:44.4]} 31. R8h7+ {[%clk 0:00:17.7]} 31... Kg8
{[%clk 0:01:43.5]} 32. Rh8+ {[%clk 0:00:15.2]} 32... Kg7 {[%clk 0:01:43.9]}
1/2-1/2